bitfinex-derivatives/quotes_ETHF0:USTF0_20250410
["timestamp","ask_amount","ask_price","bid_price","bid_amount"]
[1744264491451,9.26910111,1615.8,1615.7,4.80352]
[1744264492155,1.2384,1615.6,1615.5,1.2384]
[1744264492349,1.2384,1615.6,1615.5,3.8298]
[1744264492647,4.64398,1615.7,1615.6,1.2384]
[1744264492648,1.23838,1615.7,1615.6,1.2384]
[1744264492846,9.26912111,1615.8,1615.7,1.23832]
[1744264493052,9.26912111,1615.8,1615.7,0.9544]
[1744264493452,1.23832,1615.7,1615.6,6.6225]
[1744264493652,3.69192,1615.7,1615.6,6.6225]
[1744264493853,1.23832,1615.7,1615.6,7.8609]
[1744264495556,9.26915111,1615.8,1615.7,1.23832]
[1744264495860,9.26915111,1615.8,1615.7,2.83262]
[1744264496659,8.03084111,1615.8,1615.7,2.83262]
[1744264496960,9.26908111,1615.8,1615.7,2.83262]
[1744264497162,8.03084111,1615.8,1615.7,7.83262]
[1744264497458,4.82304111,1615.8,1615.7,13.82862]
[1744264497658,4.82304111,1615.8,1615.7,17.03642]
[1744264497961,4.82304111,1615.8,1615.7,22.03642]
[1744264498160,4.82304111,1615.8,1615.7,17.03642]
[1744264498761,4.82304111,1615.8,1615.7,22.03642]
[1744264499656,3.87830905,1615.9,1615.8,1.23824]
[1744264499854,3.87830905,1615.9,1615.8,13.01624]
[1744264500050,3.87830905,1615.9,1615.8,18.94374]
[1744264500464,0.00928678,1616.0,1615.9,1.23817]
[1744264500762,0.00928678,1616.0,1615.9,11.02797]
[1744264501154,0.00928678,1616.0,1615.9,6.02797]
[1744264502064,0.00928678,1616.0,1615.9,11.02797]
[1744264502561,0.00928678,1616.0,1615.9,16.02797]
[1744264502749,0.00928678,1616.0,1615.9,17.47812697]
[1744264502954,0.00928678,1616.0,1615.9,16.99137]
[1744264503462,0.00928678,1616.0,1615.9,22.98737]
[1744264504263,6.78e-06,1616.0,1615.9,22.98737]
[1744264504769,6.78e-06,1616.0,1615.9,63.78737]
[1744264505661,6.78e-06,1616.0,1615.9,64.27531818]
[1744264508664,6.78e-06,1616.0,1615.9,58.78737]
[1744264509561,6.78e-06,1616.0,1615.9,57.82397]
[1744264509766,2.47880678,1616.0,1615.9,57.82397]
[1744264513970,11.92469678,1616.0,1615.9,10.996]
[1744264514873,11.92469678,1616.0,1615.9,12.23417]
[1744264515171,11.92469678,1616.0,1615.9,1.23817]
[1744264515677,16.12069678,1616.0,1615.9,1.23817]
[1744264516076,5.68660678,1616.0,1615.9,1.23817]
[1744264516468,5.68660678,1616.0,1615.9,2.84687]
[1744264516674,3.71689678,1616.0,1615.9,1.23817]
[1744264517180,3.71689678,1616.0,1615.9,6.23817]
[1744264517876,2.47880678,1616.0,1615.9,6.23817]
[1744264518467,3.71689678,1616.0,1615.9,5.0]
[1744264518674,11.92469678,1616.0,1615.9,5.0]
[1744264520177,1.23824,1615.8,1615.7,1.23826]
[1744264520377,4.44604,1615.8,1615.7,1.23826]
[1744264520775,6.96434,1615.8,1615.7,1.23826]
[1744264521178,6.96434,1615.8,1615.7,6.23826]
[1744264522280,5.7261,1615.8,1615.7,6.23826]
[1744264522588,1.5923,1615.8,1615.7,6.23826]
[1744264522788,3.08394678,1616.0,1615.9,1.23817]
[1744264523792,1.23824,1615.9,1615.7,0.9628]
[1744264523991,2.86874,1615.8,1615.7,8.19712]
[1744264524192,1.6305,1615.8,1615.7,7.23432]
[1744264525191,1.6305,1615.8,1615.7,12.23432]
[1744264525379,2.86874,1615.8,1615.7,12.23432]
[1744264526196,1.6305,1615.8,1615.7,12.23432]
[1744264526595,1.6305,1615.8,1615.7,13.84002]
[1744264527292,3.08394678,1616.0,1615.9,1.23817]
[1744264527494,4.66454678,1616.0,1615.9,1.23817]
[1744264530397,1.23824,1615.9,1615.8,1.23818]
[1744264530593,2.79024,1615.9,1615.8,1.23818]
[1744264534405,1.552,1615.9,1615.8,1.23818]
[1744264534695,1.84580678,1616.0,1615.9,1.23817]
[1744264534894,0.91950678,1616.0,1615.9,1.23817]
[1744264535097,6.78e-06,1616.0,1615.9,3.76937]
[1744264535603,6.78e-06,1616.0,1615.9,8.76937]
[1744264538705,6.78e-06,1616.0,1615.9,14.76537]
[1744264540200,6.78e-06,1616.0,1615.9,17.97317]
[1744264544711,6.78e-06,1616.0,1615.9,14.76537]
[1744264548009,6.78e-06,1616.0,1615.9,27.16817]
[1744264551307,6.78e-06,1616.0,1615.9,36.8935921]
[1744264552908,6.78e-06,1616.0,1615.9,37.5127921]
[1744264553212,6.78e-06,1616.0,1615.9,36.8935921]
[1744264553509,6.78e-06,1616.0,1615.9,37.5127921]
[1744264554311,6.78e-06,1616.0,1615.9,78.3127921]
[1744264554811,6.78e-06,1616.0,1615.9,72.6935921]
[1744264560606,6.78e-06,1616.0,1615.9,77.6935921]
[1744264561406,6.78e-06,1616.0,1615.9,67.96817]
[1744264563612,0.9885,1616.4,1616.3,1.23786]
[1744264563824,0.9885,1616.4,1616.3,11.42586]
[1744264564007,5.9885,1616.4,1616.3,11.42586]
[1744264564204,5.9885,1616.4,1616.3,55.43366]
[1744264564402,0.9885,1616.4,1616.3,55.43366]
[1744264564600,0.9885,1616.4,1616.3,57.02646]
[1744264564907,8.21955302,1616.6,1616.3,57.02646]
[1744264564908,2.0073305,1616.6,1616.5,1.23771]
[1744264565212,0.4024405,1616.6,1616.5,4.44551]
[1744264565414,5e-07,1616.6,1616.5,5.40361]
[1744264565614,5e-07,1616.6,1616.5,48.34419886]
[1744264566416,0.00928678,1616.7,1616.6,1.23763]
[1744264566614,0.00928678,1616.7,1616.6,7.08003]
[1744264567013,0.00928678,1616.7,1616.6,53.87603]
[1744264568618,0.00928678,1616.7,1616.6,59.33703508]
[1744264570809,1.56838678,1616.7,1616.6,59.33703508]
[1744264572020,1.56838678,1616.7,1616.6,57.22563]
[1744264572617,1.56838678,1616.7,1616.6,53.03363]
[1744264572920,1.56838678,1616.7,1616.6,57.22463]
[1744264573315,1.56838678,1616.7,1616.6,58.76383]
[1744264578219,0.9787,1616.8,1616.7,1.23755]
[1744264578417,0.9787,1616.8,1616.7,12.01165]
[1744264578927,0.9787,1616.8,1616.7,17.01165]
[1744264579128,0.9787,1616.8,1616.7,57.81165]
[1744264582031,2.5045,1616.8,1616.7,57.81165]
[1744264582616,2.5045,1616.8,1616.7,56.24135]
[1744264584230,2.5045,1616.8,1616.7,57.91495]
[1744264586234,2.5045,1616.8,1616.7,54.70715]
[1744264586538,2.5045,1616.8,1616.7,57.91495]
[1744264587237,0.9787,1616.8,1616.7,57.91495]
[1744264588038,0.9787,1616.8,1616.7,58.87375]
[1744264588937,0.97958678,1616.9,1616.8,1.23748]
[1744264589139,0.97958678,1616.9,1616.8,2.89158]
[1744264589539,0.97958678,1616.9,1616.8,43.69158]
[1744264590539,0.97958678,1616.9,1616.8,48.69158]
[1744264591134,0.97958678,1616.9,1616.8,47.03748]
[1744264592139,0.97958678,1616.9,1616.8,48.71878]
[1744264592530,2.57198678,1616.9,1616.8,47.03748]
[1744264593341,7.57198678,1616.9,1616.8,47.03748]
[1744264593743,8.80938678,1616.9,1616.8,47.03748]
[1744264595032,8.80938678,1616.9,1616.8,5.0]
[1744264595240,1.23769,1616.6,1616.5,1.23767]
[1744264595642,6.23769,1616.6,1616.5,1.23767]
[1744264595841,7.85669,1616.6,1616.5,1.23767]
[1744264597243,1.23771,1616.5,1616.4,40.8]
[1744264597451,1.23778,1616.4,1616.3,10.9632521]
[1744264597746,6.23778,1616.4,1616.3,10.9632521]
[1744264597948,7.85678,1616.4,1616.3,51.7632521]
[1744264598145,11.06458,1616.4,1616.3,10.9632821]
[1744264598345,11.76158,1616.4,1616.3,9.7254221]
[1744264598742,1.23786,1616.3,1616.2,14.51708197]
[1744264598940,2.82786,1616.3,1616.2,11.97868197]
[1744264599140,1.23801,1616.1,1616.0,15.96260874]
[1744264599448,8.63481,1616.1,1616.0,15.96260874]
[1744264599655,13.63481,1616.1,1616.0,15.96260874]
[1744264599843,13.63481,1616.1,1616.0,14.88950874]
[1744264600949,1.23809,1616.0,1615.9,0.00928678]
[1744264601150,7.07209,1616.0,1615.9,0.00928678]
[1744264601350,7.07209,1616.0,1615.9,6.78e-06]
[1744264601351,12.07209,1616.0,1615.9,6.78e-06]
[1744264601541,1.23855,1615.4,1615.3,1.23859]
[1744264601744,7.3978,1615.5,1615.3,1.23859]
[1744264602057,1.23855,1615.4,1615.3,1.23859]
[1744264603150,1.23863,1615.3,1615.2,25.7581585]
[1744264603451,4.44643,1615.3,1615.2,24.1362585]
[1744264604355,4.44643,1615.3,1615.2,25.3749585]
[1744264604551,4.191,1615.3,1615.2,25.3749585]
[1744264604748,5.42963,1615.3,1615.2,24.1362585]
[1744264604955,8.63743,1615.3,1615.2,24.1362585]
[1744264605555,8.63743,1615.3,1615.2,25.3749585]
[1744264605745,4.191,1615.3,1615.2,25.3749585]
[1744264605949,4.191,1615.3,1615.2,1.24798678]
[1744264606456,4.191,1615.3,1615.2,11.24798678]
[1744264606853,3.21708678,1615.5,1615.4,1.23855]
[1744264607054,8.64655678,1615.5,1615.4,1.23855]
[1744264607557,8.64659678,1615.5,1615.4,1.23855]
[1744264607757,7.40808678,1615.5,1615.4,1.23855]
[1744264608159,7.40808678,1615.5,1615.4,2.82075]
[1744264608360,7.40808678,1615.5,1615.4,9.00713232]
[1744264608655,0.00928678,1615.5,1615.4,9.00713232]
[1744264609356,0.00928678,1615.5,1615.4,19.00713232]
[1744264610657,0.00928678,1615.5,1615.4,9.00713232]
[1744264611559,0.00928678,1615.5,1615.4,19.00713232]
[1744264613056,0.00928678,1615.5,1615.4,9.00713232]
[1744264613954,0.00928678,1615.5,1615.4,19.00713232]
[1744264614255,0.00928678,1615.5,1615.4,24.00713232]
[1744264617965,0.00928678,1615.5,1615.4,7.82075]
[1744264619668,0.00928678,1615.5,1615.4,14.00713232]
[1744264621269,0.00928678,1615.5,1615.4,24.00713232]
[1744264621969,0.00928678,1615.5,1615.4,27.21493232]
[1744264622171,7.3998,1616.0,1615.9,1.23817]
[1744264622667,7.3998,1616.2,1616.1,1.23801]
[1744264622863,7.3998,1616.2,1616.1,2.82561]
[1744264623066,3.2078,1616.2,1616.1,2.82561]
[1744264623264,9.0418,1616.5,1616.4,1.23778]
[1744264623565,8.63551,1616.5,1616.4,1.23778]
[1744264623771,8.63558,1616.5,1616.4,1.23778]
[1744264624071,13.40555011,1616.5,1616.4,1.23778]
[1744264624368,13.40555011,1616.5,1616.4,2.82538]
[1744264625469,13.40548011,1616.5,1616.4,2.82538]
[1744264625970,12.16777011,1616.5,1616.4,2.82538]
[1744264627167,13.40548011,1616.5,1616.4,2.82538]
[1744264627475,12.16777011,1616.5,1616.4,2.82538]
[1744264629274,7.3978,1616.5,1616.4,2.82538]
[1744264629673,7.3978,1616.5,1616.4,9.01176232]
[1744264629875,3.2078,1616.5,1616.4,9.01176232]
[1744264630076,0.00928678,1616.6,1616.5,1.23771]
[1744264630271,0.00928678,1616.6,1616.5,9.75299232]
[1744264631368,0.00928678,1616.6,1616.5,19.75299232]
[1744264631771,6.78e-06,1616.6,1616.5,14.75299232]
[1744264632273,6.78e-06,1616.6,1616.5,18.94199232]
[1744264632671,6.78e-06,1616.6,1616.5,23.94199232]
[1744264632972,7.97777011,1617.0,1616.9,1.2374]
[1744264633163,4.76997011,1617.0,1616.9,1.2374]
[1744264633369,4.76997011,1617.0,1616.9,7.42378232]
[1744264633874,4.76997011,1617.0,1616.9,9.86378232]
[1744264634076,7.16079016,1617.2,1617.1,1.23725]
[1744264634469,4.78934564,1617.3,1617.2,1.23717]
[1744264634775,4.78934564,1617.3,1617.2,9.84985232]
[1744264638276,3.21708678,1617.3,1617.2,2.88537]
[1744264638480,0.00928678,1617.3,1617.2,9.07175232]
[1744264639172,0.00928678,1617.3,1617.2,19.07174554]
[1744264639480,0.00928678,1617.3,1617.2,9.07175232]
[1744264640078,0.00928678,1617.3,1617.2,19.07174554]
[1744264640279,0.00928678,1617.3,1617.2,24.07174554]
[1744264641682,101.7558,1617.6,1617.5,1.23694]
[1744264641883,7.3948,1617.6,1617.5,1.23694]
[1744264642085,3.2078,1617.6,1617.5,42.03694]
[1744264642482,4.187,1617.8,1617.7,1.23679]
[1744264643382,4.187,1617.8,1617.7,2.91719]
[1744264643684,0.00928678,1617.9,1617.8,1.23671]
[1744264643880,0.00928678,1617.9,1617.8,2.91711]
[1744264644183,0.00928678,1617.9,1617.8,9.10349232]
[1744264645584,9.62803906,1618.4,1618.3,1.23633]
[1744264646089,9.62803906,1618.4,1618.3,7.42271232]
[1744264646289,9.62803906,1618.4,1618.3,15.63051232]
[1744264646487,9.62803906,1618.4,1618.3,18.00541232]
[1744264646984,7.68945273,1618.4,1618.3,24.00141232]
[1744264647684,2.73e-06,1618.4,1618.3,29.00141232]
[1744264647886,0.00599501,1618.5,1618.3,29.00141232]
[1744264647887,0.00599501,1618.5,1618.4,1.23625]
[1744264648079,0.00599501,1618.5,1618.4,7.42263232]
[1744264648485,0.00599501,1618.5,1618.4,48.22263232]
[1744264648985,0.00599501,1618.5,1618.4,53.22263232]
[1744264651094,0.00599501,1618.5,1618.4,54.79803232]
[1744264653183,5.01e-06,1618.5,1618.4,54.79803232]
[1744264653787,5.01e-06,1618.5,1618.4,48.61165]
[1744264654088,5.01e-06,1618.5,1618.4,54.79803232]
[1744264659190,5.01e-06,1618.5,1618.4,53.22263232]
[1744264659992,1.59230501,1618.5,1618.4,53.22263232]
[1744264660181,1.59230501,1618.5,1618.4,54.89543232]
[1744264662502,1.59230501,1618.5,1618.4,53.22263232]
[1744264662682,1.59230501,1618.5,1618.4,47.03625]
[1744264663397,7.82848501,1618.5,1618.4,5.0]
[1744264664193,1.23625,1618.4,1618.3,42.03629]
[1744264664398,2.77805,1618.4,1618.3,1.23629]
[1744264664697,7.77805,1618.4,1618.3,1.23629]
[1744264665099,10.98585,1618.4,1618.3,1.23629]
[1744264666593,1.23633,1618.3,1618.2,1.24563678]
[1744264666797,7.79943,1618.3,1618.2,0.00928678]
[1744264666988,12.79943,1618.3,1618.2,0.00928678]
[1744264667499,12.79943,1618.3,1618.2,1.24569678]
[1744264668490,12.79943,1618.3,1618.2,0.00928678]
[1744264669500,18.63343,1618.3,1618.2,0.00928678]
[1744264670699,19.13370376,1618.3,1618.2,0.00928678]
[1744264672099,1.2367,1617.9,1617.8,1.23667]
[1744264672394,5.41864,1617.9,1617.8,1.23667]
[1744264674292,5.41864,1617.9,1617.8,2.81847]
[1744264674493,4.182,1617.9,1617.8,9.00485232]
[1744264675996,4.182,1617.9,1617.8,12.21265232]
[1744264676703,6.6151,1618.2,1618.1,1.23648]
[1744264677001,12.03351,1618.2,1618.1,1.23648]
[1744264677201,13.65571,1618.2,1618.1,1.23648]
[1744264677502,12.4193,1618.2,1618.1,7.42286232]
[1744264677702,5.23559,1618.3,1618.2,1.23641]
[1744264677703,3.9992,1618.3,1618.2,1.23641]
[1744264678001,7.3898,1618.3,1618.2,9.10809232]
[1744264679999,4.182,1618.3,1618.2,9.10809232]
[1744264680401,5.41833,1618.3,1618.2,9.10809232]
[1744264680907,8.62613,1618.3,1618.2,2.92171]
[1744264681203,1.23654,1618.1,1618.0,1.2365]
[1744264681402,1.23654,1618.1,1618.0,9.00398232]
[1744264681907,2.92747,1618.2,1618.1,1.23648]
[1744264682095,1.23647,1618.2,1618.1,2.81758]
[1744264682695,2.92747,1618.2,1618.1,2.81758]
[1744264683502,1.23656,1618.0,1617.9,0.8454]
[1744264683698,1.23664,1617.9,1617.8,2.01246]
[1744264683901,1.23671,1617.8,1617.7,1.24607678]
[1744264684103,4.44451,1617.8,1617.7,0.00928678]
[1744264684808,6.08031,1617.8,1617.7,0.00928678]
[1744264685207,1.23725,1617.1,1617.0,14.29277603]
[1744264685404,5.41825,1617.1,1617.0,1.23732]
[1744264685601,5.41825,1617.1,1617.0,7.42370232]
[1744264686305,4.181,1617.1,1617.0,7.42370232]
[1744264686508,0.00928678,1617.2,1617.1,1.23725]
[1744264686708,0.00928678,1617.2,1617.1,7.42363232]
[1744264687107,0.00928678,1617.2,1617.1,12.42363232]
[1744264689821,0.00928678,1617.2,1617.1,17.42363232]
[1744264694432,0.00928678,1617.2,1617.1,12.42363232]
[1744264696426,0.00928678,1617.2,1617.1,14.03503232]
[1744264697635,0.00928678,1617.2,1617.1,19.03503232]
[1744264698533,0.00928678,1617.2,1617.1,59.83503232]
[1744264702738,0.00928678,1617.2,1617.1,54.83503232]
[1744264702938,0.00928678,1617.2,1617.1,60.83103232]
[1744264708935,0.00928678,1617.2,1617.1,61.63313232]
[1744264713545,4.182,1617.6,1617.5,1.23694]
[1744264713948,10.86616501,1617.7,1617.6,1.23686]
[1744264714138,10.86616501,1617.7,1617.6,7.42324232]
[1744264714449,9.62934501,1617.7,1617.6,7.42324232]
[1744264714744,9.62934501,1617.7,1617.6,9.07454232]
[1744264714945,10.86613501,1617.7,1617.6,9.07454232]
[1744264715246,9.62934501,1617.7,1617.6,9.07454232]
[1744264716647,10.86613501,1617.7,1617.6,9.07454232]
[1744264717144,2.421,1617.7,1617.6,9.07454232]
[1744264722148,3.65779,1617.7,1617.6,9.07454232]
[1744264722351,2.421,1617.7,1617.6,9.07454232]
[1744264723043,2.421,1617.7,1617.6,12.28234232]
[1744264723249,0.00928678,1617.8,1617.7,1.23679]
[1744264723448,0.00928678,1617.8,1617.7,16.53787232]
[1744264725438,0.00928678,1617.8,1617.7,21.53787232]
[1744264728649,1.24599678,1617.8,1617.7,18.41917232]
[1744264728854,4.57209678,1617.8,1617.7,18.41917232]
[1744264729751,4.57209678,1617.8,1617.7,12.42317232]
[1744264729947,4.57209678,1617.8,1617.7,7.42317232]
[1744264731147,14.63502678,1617.8,1617.4,53.09633]
[1744264731352,1.23694,1617.6,1617.5,7.42327232]
[1744264732248,6.23694,1617.6,1617.5,1.23689]
[1744264732453,6.23694,1617.6,1617.4,4.44478]
[1744264732454,1.23694,1617.5,1617.4,4.44478]
[1744264732643,3.55424,1617.5,1617.4,4.44478]
[1744264732844,3.55424,1617.5,1617.4,1.23698]
[1744264733251,2.3173,1617.5,1617.4,1.23698]
[1744264733650,3.55424,1617.5,1617.4,1.23698]
[1744264733850,3.55424,1617.5,1617.4,2.84258]
[1744264734751,14.07188678,1617.8,1617.4,7.79198232]
[1744264734956,2.76705,1617.7,1617.6,1.23682]
[1744264736851,12.36491316,1617.7,1617.6,1.23682]
[1744264738857,12.36491316,1617.7,1617.6,7.42320232]
[1744264739447,12.36491316,1617.7,1617.6,6.18638232]
[1744264739647,12.36491316,1617.7,1617.6,7.42324232]
[1744264739847,12.36491316,1617.7,1617.6,6.18638232]
[1744264740349,12.36491316,1617.7,1617.6,7.42324232]
[1744264740754,3.69477471,1617.7,1617.6,6.18638232]
[1744264740954,3.69477471,1617.7,1617.6,7.42324232]
[1744264742454,2.16457471,1617.7,1617.6,7.42324232]
[1744264742666,0.92772471,1617.7,1617.6,8.18954232]
[1744264742851,2.16451471,1617.7,1617.6,9.72194232]
[1744264743157,0.92772471,1617.7,1617.6,9.72194232]
[1744264743659,2.16451471,1617.7,1617.6,9.72194232]
[1744264744256,2.16451471,1617.7,1617.6,8.48508232]
[1744264744559,2.16451471,1617.7,1617.6,9.72194232]
[1744264744754,3.78311471,1617.7,1617.6,9.72194232]
[1744264745058,11.02664522,1617.7,1617.6,9.72194232]
[1744264745661,11.02664522,1617.7,1617.6,8.48508232]
[1744264745862,1.23702,1617.4,1617.3,0.7777]
[1744264746162,1.23702,1617.4,1617.3,8.59398232]
[1744264746364,2.90762,1617.4,1617.3,9.83107232]
[1744264746564,1.23698,1617.5,1617.4,1.23694]
[1744264746757,1.23698,1617.5,1617.4,2.86684]
[1744264747963,6.37367,1617.6,1617.5,1.23686]
[1744264747964,1.23693,1617.6,1617.5,1.23686]
[1744264748161,1.23693,1617.6,1617.5,9.11134232]
[1744264749171,1.23693,1617.6,1617.5,9.89114232]
[1744264749369,1.23693,1617.6,1617.5,14.89114232]
[1744264750967,15.01372316,1617.7,1617.6,1.23686]
[1744264751166,15.01372316,1617.7,1617.6,9.08784232]
[1744264752869,9.59786316,1617.7,1617.6,9.08784232]
[1744264753370,9.59786316,1617.7,1617.6,12.29564232]
[1744264754174,10.84387994,1617.8,1617.7,1.23679]
[1744264754383,10.84387994,1617.8,1617.7,9.83137232]
[1744264755673,9.60714994,1617.8,1617.7,9.83137232]
[1744264756073,10.84385994,1617.8,1617.7,9.83137232]
[1744264756272,10.84385994,1617.8,1617.7,14.83137232]
[1744264758274,9.60714994,1617.8,1617.7,14.83137232]
[1744264759467,5.76236429,1617.8,1617.7,14.83137232]
[1744264763173,6.99907429,1617.8,1617.7,13.59458232]
[1744264763376,8.54477429,1617.8,1617.7,14.83137232]
[1744264763577,6.99907429,1617.8,1617.7,14.83137232]
[1744264764077,6.99907429,1617.8,1617.7,9.83137232]
[1744264764276,5.76236429,1617.8,1617.7,9.83137232]
[1744264764671,0.00928678,1617.8,1617.7,9.83137232]
[1744264765079,0.00928678,1617.8,1617.7,14.83137232]
[1744264767175,0.00928678,1617.8,1617.7,8.64499]
[1744264767479,0.00928678,1617.8,1617.7,14.83137232]
[1744264769075,1.24599678,1617.8,1617.7,13.59458232]
[1744264769275,4.50589678,1617.8,1617.7,12.75708232]
[1744264769581,4.50589678,1617.8,1617.7,8.99387232]
[1744264769774,3.09198,1617.7,1617.3,18.89614773]
[1744264770081,1.23694,1617.6,1617.5,1.2369]
[1744264770272,2.88004,1617.6,1617.5,2.8012]
[1744264770473,2.88004,1617.6,1617.5,8.98758232]
[1744264771079,1.23694,1617.6,1617.5,8.98758232]
[1744264772573,2.91244,1617.6,1617.5,8.98758232]
[1744264772774,11.07848828,1617.6,1617.5,8.98758232]
[1744264776982,1.23702,1617.4,1617.3,0.791]
[1744264777186,1.23702,1617.4,1617.3,8.63058232]
[1744264777484,2.81682,1617.4,1617.3,9.86767232]
[1744264777886,1.23701,1617.5,1617.4,1.23702]
[1744264778073,9.40298828,1617.6,1617.5,1.23694]
[1744264778376,9.40298828,1617.6,1617.5,7.42332232]
[1744264778576,9.40298828,1617.6,1617.5,8.97792232]
[1744264780680,8.16604828,1617.6,1617.5,8.97792232]
[1744264780987,9.40290828,1617.6,1617.5,8.97792232]
[1744264782980,9.40290828,1617.6,1617.5,1.5546]
[1744264783186,1.23694,1617.5,1617.4,7.23297]
[1744264783385,1.23694,1617.5,1617.4,15.09825232]
[1744264783386,2.88164,1617.5,1617.4,15.09825232]
[1744264785086,2.88164,1617.5,1617.4,9.10225232]
[1744264785588,1.23694,1617.5,1617.4,9.10225232]
[1744264785992,1.23694,1617.5,1617.4,6.18638232]
[1744264786284,3.64884,1617.5,1617.4,6.18638232]
[1744264786888,1.23702,1617.4,1617.3,3.66065]
[1744264787092,2.81772,1617.4,1617.3,9.84703232]
[1744264787784,1.23702,1617.4,1617.3,9.84703232]
[1744264788183,1.23702,1617.4,1617.3,14.84703232]
[1744264790089,5.414,1617.5,1617.4,1.23702]
[1744264790286,5.414,1617.5,1617.4,9.03070232]
[1744264790983,13.58004828,1617.5,1617.4,9.03070232]
[1744264792194,13.58004828,1617.5,1617.4,6.18638232]
[1744264792389,15.22874828,1617.5,1617.4,6.18638232]
[1744264792590,1.23717,1617.2,1617.1,9.2038]
[1744264792788,5.41517,1617.2,1617.1,7.82418232]
[1744264793093,1.23732,1617.0,1616.9,0.00928678]
[1744264793295,1.23732,1617.0,1616.9,7.8334691]
[1744264793686,2.80082,1617.0,1616.9,7.8334691]
[1744264794289,1.23732,1617.1,1617.0,1.23732]
[1744264794489,1.23732,1617.1,1617.0,10.67910232]
[1744264795296,5.41517,1617.2,1617.1,1.23725]
[1744264795596,1.23717,1617.2,1617.1,8.95593232]
[1744264796195,1.23715,1617.3,1617.2,1.23713]
[1744264796398,8.62288,1617.4,1617.3,1.23709]
[1744264796696,5.41508,1617.4,1617.3,9.09107232]
[1744264796889,5.41508,1617.4,1617.3,10.78077232]
[1744264797387,5.41508,1617.4,1617.3,2.4904]
[1744264797588,7.04628,1617.4,1617.3,2.4904]
[1744264797784,5.41508,1617.4,1617.3,3.72749]
[1744264797983,5.41508,1617.4,1617.3,9.91387232]
[1744264798193,5.41508,1617.4,1617.3,8.67678232]
[1744264798399,5.41508,1617.4,1617.3,9.91387232]
[1744264800195,1.23708,1617.4,1617.3,9.91387232]
[1744264800587,9.40303828,1617.5,1617.4,1.23702]
[1744264800897,9.40303828,1617.5,1617.4,7.77398232]
[1744264801094,11.02133828,1617.5,1617.4,7.77398232]
[1744264801295,9.40303828,1617.5,1617.4,7.77398232]
[1744264801691,9.40303828,1617.5,1617.4,9.01100232]
[1744264801892,8.47530542,1617.5,1617.4,9.01100232]
[1744264802497,8.47530542,1617.5,1617.4,7.77398232]
[1744264802695,10.13530542,1617.5,1617.4,7.77398232]
[1744264802895,8.47530542,1617.5,1617.4,9.01100232]
[1744264803100,8.47530542,1617.5,1617.4,7.77398232]
[1744264803290,8.47530542,1617.5,1617.4,9.01100232]
[1744264804296,8.47530542,1617.5,1617.4,7.77398232]
[1744264804599,12.65330542,1617.5,1617.4,1.5876]
[1744264804797,1.23709,1617.3,1617.2,6.8567]
[1744264804994,1.23709,1617.3,1617.2,14.28025232]
[1744264805193,1.23709,1617.3,1617.2,13.04308232]
[1744264805401,1.23709,1617.3,1617.2,14.70588232]
[1744264805600,1.23709,1617.3,1617.2,8.70988232]
[1744264805803,2.79309,1617.3,1617.2,8.70988232]
[1744264806301,2.79309,1617.3,1617.2,7.84918232]
[1744264806703,2.79309,1617.3,1617.2,1.6628]
[1744264807205,1.23717,1617.2,1617.1,0.844]
[1744264807404,6.96917,1617.2,1617.1,8.56388232]
[1744264808106,5.41317,1617.2,1617.1,9.80113232]
[1744264808996,8.62097,1617.2,1617.1,8.56388232]
[1744264809200,8.62097,1617.2,1617.1,6.18638232]
[1744264809403,8.62097,1617.2,1617.1,7.83748232]
[1744264809604,1.23725,1617.1,1616.9,0.84128678]
[1744264809806,2.83055,1617.1,1617.0,6.18638232]
[1744264810007,2.83055,1617.1,1617.0,7.83748232]
[1744264810207,4.176,1617.2,1617.1,1.23725]
[1744264810419,8.16611565,1617.3,1617.2,1.23717]
[1744264810702,8.16611565,1617.3,1617.2,11.46335232]
[1744264810900,8.16611565,1617.3,1617.2,9.90665232]
[1744264811104,9.40320565,1617.3,1617.2,50.70665232]
[1744264811403,8.16611565,1617.3,1617.2,55.70665232]
[1744264812795,1.65084565,1617.3,1617.2,60.51627]
[1744264812995,5.06232649,1617.5,1617.4,1.23702]
[1744264813201,3.40455649,1617.5,1617.4,19.61682]
[1744264813908,3.40455649,1617.5,1617.4,60.41682]
[1744264814310,4.82004365,1617.5,1617.4,60.41682]
[1744264815114,0.24718365,1617.5,1617.4,65.41682]
[1744264815411,3.41384327,1617.8,1617.7,1.23679]
[1744264815714,3.41384327,1617.8,1617.7,10.44059]
[1744264815913,3.41384327,1617.8,1617.7,19.61659]
[1744264816402,3.41384327,1617.8,1617.7,21.22649]
[1744264816604,3.41384327,1617.8,1617.7,26.22649]
[1744264817410,3.41384327,1617.8,1617.7,21.22649]
[1744264817707,3.41384327,1617.8,1617.7,13.84269]
[1744264818408,4.65055327,1617.8,1617.7,10.996]
[1744264818603,11.27175327,1617.8,1617.7,5.0]
[1744264819111,1.23686,1617.6,1617.5,9.69234773]
[1744264819296,1.23686,1617.6,1617.5,10.92928773]
[1744264819711,2.04616,1617.6,1617.5,10.92928773]
[1744264820008,2.04616,1617.6,1617.5,12.60528773]
[1744264820208,1.6212,1617.7,1617.6,1.23686]
[1744264820405,1.24603678,1617.8,1617.7,1.23679]
[1744264821109,0.00928678,1617.8,1617.7,1.23679]
[1744264821306,0.00928678,1617.8,1617.7,4.44459]
[1744264821511,0.00928678,1617.8,1617.7,15.44059]
[1744264821813,0.00928678,1617.8,1617.7,10.44059]
[1744264822513,0.00928678,1617.8,1617.7,20.44059]
[1744264823214,0.00928678,1617.8,1617.7,15.44059]
[1744264824703,0.00928678,1617.8,1617.7,16.22339]
[1744264826417,0.00928678,1617.8,1617.7,21.22339]
[1744264826609,0.00928678,1617.8,1617.7,25.39839]
[1744264827412,0.00928678,1617.8,1617.7,20.39839]
[1744264827610,0.00928678,1617.8,1617.7,19.61559]
[1744264830110,0.00928678,1617.8,1617.7,15.44059]
[1744264830312,6.24599678,1617.8,1617.7,10.996]
[1744264830519,8.69819678,1617.8,1617.7,10.996]
[1744264831419,3.09207,1617.7,1617.4,50.8132]
[1744264831622,1.23691,1617.6,1617.5,1.23687]
[1744264831919,3.72106,1617.6,1617.5,1.23687]
[1744264832111,3.72106,1617.6,1617.5,2.81387]
[1744264832317,0.8205,1617.6,1617.5,2.81387]
[1744264832819,2.4842,1617.6,1617.5,2.81387]